Cogmind - Beta 16 @@@ ROGUE MODE // 2026.01.06 @ 01:30:20 Player: C4PT41N Result: Destroyed by D-53 Grenadier with Mini Grenade Launcher Performance ------------- Evolutions (0) 0 Regions Visited (0) 0 Robots Destroyed (10) 50 Value Destroyed (45) 45 Prototype IDs (0) 0 Alien Tech Used (0) 0 Bonus (0) 0 TOTAL SCORE: 95 Bonus ------- None Cogmind --------- Core Integrity 0/250 Matter 300/300 Energy 98/100 System Corruption 0% Temperature Cool (1) Movement Walking (120) Location -11/Scrapyard Parts ------- > --- POWER (1) -------- (None) > --- PROPULSION (2) --- Aluminum Leg > --- UTILITY (2) ------ Small Storage Unit Seismic Detector > --- WEAPON (2) ------- (None) > --- INVENTORY (8) ---- Light Ion Engine Compact Wheel Compact Wheel Improved Terrain Scanner Mining Laser Peak State ------------ > --- POWER ------------ Light Ion Engine > --- PROPULSION ------- Compact Wheel Compact Wheel > --- UTILITY ---------- Small Storage Unit Improved Terrain Scanner > --- WEAPON ----------- Medium Laser Assault Rifle > --- INVENTORY -------- Light Treads Small Laser [Rating: 9] Favorites ----------- Power Light Ion Engine Engine Light Ion Engine Propulsion Aluminum Leg Leg Aluminum Leg Wheel Compact Wheel Utility Small Storage Unit Device Seismic Detector Storage Small Storage Unit Weapon Assault Rifle Energy Gun Medium Laser Ballistic Gun Assault Rifle Build | -11 ------- Run | Yrd Slots Evolved . | . Power . | . Propulsion . | . Utility . | . Weapon . | . Parts Attached 12 | 12 Power 1 | 1 Engine 1 | 1 Core . | . Reactor . | . Propulsion 5 | 5 Treads . | . Leg 2 | 2 Wheel 3 | 3 Hover . | . Flight . | . Utility 3 | 3 Device 2 | 2 Storage 1 | 1 Processor . | . Hackware . | . Protection . | . Artifact . | . Weapon 3 | 3 Energy Gun 2 | 2 Energy Cannon . | . Ballistic Gun 1 | 1 Ballistic Cannon . | . Launcher . | . Special Weapon . | . Impact Weapon . | . Slashing Weapon . | . Piercing Weapon . | . Special Melee Weapon . | . Unidentified Prototypes . | . Parts Lost 4 | 4 Power 1 | 1 Propulsion 1 | 1 Utility . | . Weapon 2 | 2 Highest Loss Streak 3 | 3 To Critical Strikes . | . Average Backups 5 | 5 Power . | . Propulsion 1 | 1 Utility . | . Weapon 1 | 1 Tool/Special . | . Unused Backups 3 | 3 Power 1 | 1 Propulsion 1 | 1 Utility . | . Weapon 1 | 1 Tool/Special . | . Average Slot Usage (%) . | . Peak Build Rating 9 | 9 Average Rating 6 | 6 On Entrance . | . Avg Prop Armor Cover (%) . | . Naked Turns . | . Heaviest Build 13 | 13 Greatest Support 32 | 32 Greatest Overweight (x) 1 | 1 Average Overweight (x) . | . Largest Inventory Capacity 8 | 8 Average Capacity 7 | 7 Most Carried 6 | 6 Average Carried 5 | 5 Final Capacity 8 | 8 Final Carried 5 | 5 Class Distribution -------------------- None Dominant Class ---------------- None Resources | -11 ----------- Run | Yrd Matter Collected 399 | 399 Remotely . | . Salvage Created 204 | 204 Parts 22 | 22 Haulers Intercepted . | . Recyclers Shooed 1 | 1 Parts Field Recycled . | . Retrieved Matter . | . Parts Self-Destructed . | . Prevented . | . Parts Restored . | . Kills | -11 ------- Run | Yrd Combat Hostiles Destroyed . | . Classes Destroyed 3 | 3 Worker 4 | 4 Tunneler 5 | 5 Recycler 1 | 1 Best Kill Streak 2 | 2 Combat Bots Only . | . Max Kills in Single Turn 1 | 1 Gunslinging . | . Exploded . | . Melee . | . Uniques/NPCs Destroyed . | . Combat | -11 -------- Run | Yrd Hostile Shots Fired 30 | 30 Missed 12 | 12 Hits 18 | 18 Melee 6 | 6 Projectile 12 | 12 AOE 10 | 10 Critical Strikes 1 | 1 Damage Taken 655 | 655 Core 289 | 289 Absorbed by Shields . | . Core Remaining (%) . | . Volleys Fired 23 | 23 Largest 2 | 2 Hottest 70 | 70 Shots Fired 46 | 46 Gun 46 | 46 Cannon . | . Launcher . | . Special . | . Kinetic 23 | 23 Thermal 23 | 23 Explosive . | . Electromagnetic . | . Robot Hit Streak 8 | 8 Robot Miss Streak 3 | 3 Penetration Max . | . Secondary Targets . | . Shots Hit Robots 27 | 27 Core Hits 11 | 11 Critical Kills . | . Critical Parts Destroyed . | . Critical Strikes 1 | 1 Burn 1 | 1 Melee Attacks . | . Impact . | . Slashing . | . Piercing . | . Sneak Attacks . | . Combat Hostiles . | . Follow-up Attacks . | . Damage Inflicted 342 | 342 Guns 342 | 342 Cannons . | . Explosions . | . Melee . | . Ramming . | . Kinetic 181 | 181 Thermal 161 | 161 Explosive . | . Electromagnetic . | . Impact . | . Slashing . | . Piercing . | . Highest Corruption . | . Average Corruption . | . Corruption Purged . | . Corruption Blocked . | . Overload Shots . | . Overflow Damage . | . Projectiles . | . Explosions . | . Melee . | . Knockbacks . | . Impact . | . Kinetic . | . Secondary . | . Self-Inflicted Damage . | . Shots . | . Rammed . | . Targets Rammed . | . Kicked . | . Crushed . | . Highest Temperature 27 | 27 Average Temperature 10 | 10 Received Heat Transfer . | . Siege Activations . | . Martial Activations . | . Shielding Activations . | . Robots Disrupted . | . Combat Hostiles . | . Robots Corrupted . | . Combat Hostiles . | . Parts Fried . | . Impact Corruptions . | . Robots Melted . | . Combat Hostiles . | . Parts Melted 2 | 2 Heat Transferred 555 | 555 Parts Sabotaged . | . Parts Stolen . | . Parts Stripped . | . Power Chain Reactions . | . Alert | -11 ------- Run | Yrd Maximum Alert Level . | . Low Security (%) 100 | 100 Level 1 . | . Level 2 . | . Level 3 . | . Level 4 . | . Level 5 . | . High Security . | . Max Security . | . Peak Influence 5 | 5 Initial . | . Average . | . Influence Increases 50 | 50 Destroy 0b10 Robot/NC 50 | 50 Influence Decreases 50 | 50 Time Decay 50 | 50 Squads Dispatched . | . Investigation . | . Extermination . | . Reinforcement . | . Assault . | . Garrison . | . Intercept . | . Searches Triggered . | . Construction Impeded . | . Haulers Reinforced . | . Active Scanning Responses . | . Cargo Convoy Interrupts . | . Stealth | -11 --------- Run | Yrd Distress Signals . | . Communications Jammed . | . Distress Signals . | . Times Spotted 24 | 24 Peak Tracking Total 20 | 20 Tactical Retreats 1 | 1 Traps | -11 ------- Run | Yrd Traps Triggered . | . Indirectly . | . Trap Hack Attempts . | . Triggered . | . Disarmed . | . Reprogrammed . | . Reused . | . Traps Extracted . | . Installed . | . Triggered . | . Machines | -11 ---------- Run | Yrd Machines Disabled . | . Max in Single Turn . | . Machines Repaired . | . Machines Dismantled . | . Machines Sabotaged . | . Overloaded Fab Kills . | . Hacking | -11 --------- Run | Yrd Machines Accessed . | . Terminals . | . Fabricators . | . Repair Stations . | . Recycling Units . | . Scanalyzers . | . Garrison Access . | . Total Hacks . | . Successful . | . Failed . | . Catastrophic . | . Database Lockouts . | . Manual . | . Terminals . | . Fabricators . | . Repair Stations . | . Recycling Units . | . Scanalyzers . | . Garrison Access . | . Terminal Hacks . | . Fabricator Hacks . | . Repair Station Hacks . | . Recycling Unit Hacks . | . Scanalyzer . | . Garrison Access Hacks . | . Unauthorized Hacks . | . Terminals . | . Fabricators . | . Repair Stations . | . Recycling Units . | . Scanalyzers . | . Garrison Access . | . Data Cores Recovered . | . Used . | . Hacking Detections . | . Full Trace Events . | . Feedback Events . | . Feedback Blocked . | . Robot Schematics Acquired . | . Robots Built . | . Authchips . | . Time . | . Total Robot Build Rating . | . Part Schematics Acquired . | . Parts Built . | . Authchips . | . Time . | . Total Part Build Rating . | . Part Studies Acquired . | . Parts Repaired . | . Time . | . Parts Recycled . | . Recycled Matter . | . Retrieved Matter . | . Retrieved Components . | . Parts Scanalyzed . | . Part Schematics Acquired . | . Parts Damaged . | . Bothacking | -11 ------------ Run | Yrd Used RIF Installer . | . Robots Hacked . | . Non-combat . | . Combat . | . Robot Hacks Applied . | . Relay Couplers Released . | . Fabnet Peak Effective % . | . Robots Rewired . | . Allies Hacked . | . Hacks Repelled . | . Allies | -11 -------- Run | Yrd Total Allies . | . Largest Group . | . Highest-Rated Group . | . Highest-Rated Ally . | . Total Orders . | . Ally Attacks . | . Total Damage . | . Kills . | . Allies Corrupted . | . Allies Melted . | . Intel | -11 ------- Run | Yrd Active Infowar (turns) 1273 | 1273 Terrain 123 | 123 Seismic 1150 | 1150 Robot Analysis Total . | . Derelict Logs Recovered . | . Drone Launches . | . Drone Recoveries . | . Exploration | -11 ------------- Run | Yrd Turns Passed 1361 | 1361 Spaces Moved 546 | 546 Core 3 | 3 Treads . | . Legs 323 | 323 Wheels 220 | 220 Hover . | . Flight . | . Fastest Speed 50 | 50 Average Speed 111 | 111 Slowest Speed 190 | 190 Overloaded Moves . | . Propulsion Burnouts . | . Robots Hopped . | . Potential Cave-ins . | . Cave-ins Triggered . | . Exploration Rate (%) 26 | 26 Regions Visited . Branch Regions . Pre-discovered Areas . | . Known Exits Taken . | . Unknown Exits Taken . | . Scrap Searched . | . Spaces Dug . | . Terrain Destroyed . | . Melee . | . Projectile . | . AOE . | . Terrain Rammed . | . Walls Destroyed . | . Machines Disabled . | . Actions | -11 --------- Run | Yrd Total 1250 | 1250 Wait 655 | 655 Move 546 | 546 Hop . | . Pick Up 4 | 4 Fast Attach 11 | 11 Attach 3 | 3 Detach 6 | 6 Swap . | . Drop 2 | 2 Fire 23 | 23 Melee . | . Ram . | . Kick . | . Crush . | . Escape Stasis . | . Rewire . | . Trap . | . Miscellaneous . | . Route ------- -11/Scrapyard (discovered 1 exit: [*Mat]) History --------- Turn | Location | Event 25 | -11/Scrapyard | Discovered new exit (range 15) 1290 | -11/Scrapyard | Assembled infested the area 1334 | -11/Scrapyard | Core integrity fell below 50% 1344 | -11/Scrapyard | Core integrity fell below 20% 1362 | -11/Scrapyard | Destroyed by D-53 Grenadier with Mini Grenade Launcher Last Messages --------------- 01320_ as-37758 destroyed. 01320_ as-44898 destroyed. 01320_ as-07171 destroyed. 01322_ as-96256 destroyed. 01322_ as-48920 destroyed. 01322_ as-85224 destroyed. 01322_ as-75484 destroyed. 01322_ as-76002 destroyed. 01322_ as-07361 destroyed. 01322_ as-68248 destroyed. 01322_ as-71330 destroyed. 01322_ as-80447 destroyed. 01324_ as-39802 destroyed. 01324_ as-04732 destroyed. 01327_ as-48800 destroyed. 01336_ D-53 Grenadier destroyed. 01343_ Lgt. Ion Engine destroyed. 01343_ Sml. Laser destroyed. 01347_ Aluminum Leg destroyed. 01349_ The unstable cave ceiling collapses. Map ----- +----------------------------------------------------+ | ????????????# ####??????????????????? | | ????????????# #### #??????????????????? | | ????????????###?????# #??????????????????? | | ????????????????????# #??????????????????? | | ??????????????#???????# ########???????????? | | ??????????????????????# ### ##??????????? | | ??????????????????????# # ##?????????? | | ??????????????????????# % % #?????????? | | ??????????????????????######### ##?????????? | | ???????????????#???#??????????# #?????????? | | ???????????#????????#????????## #?????????? | | ???????????????????##???####### #?????????? | | ????????#??????????# #### # ##?????????? | | ???????????#????#???# #== #?????????? | | ????????????????????# #* ## #??????????? | | ????????????????????# ##### ##?????????? | | ???????#??????#???#?# # ##??# #?????????? | | ????????????#????#??# ####????# # #??????????? | | ?????#????##????##### ####????## #########??? | | ????##########?### #????# ## #??? | | ????# #??## ####### # #??? | | ????# #???# ## # #??? | | ##### #####! = =% d # #???? | | * = = ! = = = #????? | | = == ##%=!%# ##????? | | # ### * %##### <@ # ## *## ##?????? | | ????# !#???# ## ## ## ##??????? | | ????# #???########### ## ######???????? | | ????#### ####?????????????# ## #????????????? | | ?#?????# #????????????????# #? #????????????? | | ???????# #????#???????????# #? #????????????? | | ???#??## ????????????????# #? #????????????? | | ???#???# #???????????###??# #? ????????????? | | ???????####????????????????# ##? ????????????? | | ??????????##???#???????????#####?? ????????????? | | ?????#??#????????????#???????????? ????????????? | | ???????????????????????????????????#?????????????? | | ?????????????#????#??????????????????????????????? | | ?????????????????????????????????????????????????? | | ??????????#??????????????????????????????????????? | | ?????????#???????????????????????????????????????? | | ?????????????????????????????????????????????????? | | ?????????????????????????????????????????????????? | | ?????????????????????????????????????????????????? | | ?????????????????????????????????????????????????? | | ?????????????????????????????????????????????????? | | ?????????????????????????????????????????????????? | | ?????????????????????????????????????????????????? | | ?????????????????????????????????????????????????? | | ?????????????????????????????????????????????????? | +----------------------------------------------------+ Best States ------------- Heat Dissipation 25 Energy Generation 10 Energy Capacity 125 Matter Stores 300 Matter Capacity 300 Sight Range 16 Terrain Scan Range 16 Terrain Scan Density 10 Evasion (%) 55 Item Schematics ----------------- None Robot Schematics ------------------ None Fabricated ------------ Nothing Repaired ---------- Nothing Studied --------- None Alien Tech Used ----------------- None Achievements -------------- Curiosity Killed The Cat Hunted Challenges ------------ None Game ------ Seed MetafiberControlCutter Manual? 0 Play Time 00:11:10 Cumulative 16.0 hours Start 2026.01.06 @ 01:24:24 End 2026.01.06 @ 01:30:20 Sessions 0 Manual Loads 0 Difficulty Rogue Special Mode None Game No. 20 Rogue 20 Adventurer 0 Explorer 0 Win Type - Total 0 Types 0/0/0/0/0/0/0/0/0/0 Lore% 16 Gallery% 15 Achievement% 16 Wizard Run 0 Options --------- Layout 1 ASCII 0 Keyboard 0 Movement Arrows Keybinds 0 Fullscreen 2 Font 24/Crisp Map View 50x35 Zoom Use 0% Tactical HUD 1 Map Filters NONE Filters NONE Steam 1 RUN: 4dd8a950-f39b-4a5f-a3f3-8881e6841ea7